[Event "Titled Tuesday Blitz August 1 Early 2023"]
[White "Timerkhanov, Alexander"]
[Black "Rama, Tejas"]
[WhiteFideId "24177938"]
[BlackFideId "30907381"]
[WhiteElo "2630"]
[BlackElo "2490"]
[Result "1-0"]
[Round "8"]
[TimeControl "180+1"]
[Date "2023.08.01"]
[WhiteClock "0:00:20"]
[BlackClock "0:00:03"]
[Board "98"]

1. d4 {[%clk 0:03:00]}  Nf6 {[%clk 0:02:54]} 2. Bg5 {[%clk 0:03:01]}  d5 {[%clk 0:02:54]} 3. Nd2 {[%clk 0:03:01]}  c5 {[%clk 0:02:52]} 4. e3 {[%clk 0:03:01]}  Nc6 {[%clk 0:02:48]} 5. c3 {[%clk 0:03:01]}  Qb6 {[%clk 0:02:37]} 6. Qb3 {[%clk 0:03:00]}  c4 {[%clk 0:02:33]} 7. Qxb6 {[%clk 0:02:55]}  axb6 {[%clk 0:02:34]} 8. a3 {[%clk 0:02:54]}  b5 {[%clk 0:02:32]} 9. Bxf6 {[%clk 0:02:50]}  gxf6 {[%clk 0:02:31]} 10. Rc1 {[%clk 0:02:50]}  h5 {[%clk 0:02:27]} 11. e4 {[%clk 0:02:48]}  dxe4 {[%clk 0:02:23]} 12. Nxe4 {[%clk 0:02:49]}  Bh6 {[%clk 0:02:20]} 13. Rd1 {[%clk 0:02:47]}  Na5 {[%clk 0:01:33]} 14. h4 {[%clk 0:02:43]}  Nb3 {[%clk 0:01:29]} 15. Be2 {[%clk 0:02:35]}  Bf5 {[%clk 0:01:19]} 16. Bf3 {[%clk 0:02:30]}  Nc1 {[%clk 0:01:13]} 17. Ng3 {[%clk 0:02:19]}  Bc2 {[%clk 0:01:09]} 18. Bxb7 {[%clk 0:02:10]}  Rb8 {[%clk 0:01:08]} 19. Bc6+ {[%clk 0:02:10]}  Kf8 {[%clk 0:01:08]} 20. Rd2 {[%clk 0:02:00]}  Nd3+ {[%clk 0:01:04]} 21. Ke2 {[%clk 0:02:00]}  Bxd2 {[%clk 0:01:02]} 22. Kxd2 {[%clk 0:02:00]}  Bb3 {[%clk 0:01:00]} 23. Nh3 {[%clk 0:01:59]}  Nxb2 {[%clk 0:00:59]} 24. Nf4 {[%clk 0:01:57]}  Rb6 {[%clk 0:00:56]} 25. d5 {[%clk 0:01:56]}  Ra6 {[%clk 0:00:47]} 26. Rb1 {[%clk 0:01:54]}  Na4 {[%clk 0:00:42]} 27. Bxb5 {[%clk 0:01:50]}  Ra5 {[%clk 0:00:40]} 28. Bc6 {[%clk 0:01:49]}  Nc5 {[%clk 0:00:37]} 29. a4 {[%clk 0:01:46]}  Nxa4 {[%clk 0:00:29]} 30. Ra1 {[%clk 0:01:44]}  Ra6 {[%clk 0:00:28]} 31. Nf5 {[%clk 0:01:14]}  Nc5 {[%clk 0:00:25]} 32. Rxa6 {[%clk 0:01:14]}  Nxa6 {[%clk 0:00:26]} 33. Ke3 {[%clk 0:01:13]}  e5 {[%clk 0:00:22]} 34. dxe6 {[%clk 0:01:11]}  Nc7 {[%clk 0:00:08]} 35. e7+ {[%clk 0:01:08]}  Kg8 {[%clk 0:00:08]} 36. e8=Q+ {[%clk 0:00:51]}  Nxe8 {[%clk 0:00:08]} 37. Bxe8 {[%clk 0:00:51]}  Bc2 {[%clk 0:00:08]} 38. Bd7 {[%clk 0:00:49]}  Kh7 {[%clk 0:00:07]} 39. Nxh5 {[%clk 0:00:45]}  Rd8 {[%clk 0:00:04]} 40. Nd4 {[%clk 0:00:37]}  Bg6 {[%clk 0:00:03]} 41. Bg4 {[%clk 0:00:34]}  f5 {[%clk 0:00:02]} 42. Bf3 {[%clk 0:00:33]}  Kg8 {[%clk 0:00:01]} 43. Nf4 {[%clk 0:00:33]}  Re8+ {[%clk 0:00:02]} 44. Kd2 {[%clk 0:00:32]}  Ra8 {[%clk 0:00:03]} 45. Bd5 {[%clk 0:00:32]}  Ra2+ {[%clk 0:00:02]} 46. Ke3 {[%clk 0:00:33]}  Kg7 {[%clk 0:00:03]} 47. Bxc4 {[%clk 0:00:31]}  Ra3 {[%clk 0:00:04]} 48. Kd3 {[%clk 0:00:30]}  Ra5 {[%clk 0:00:04]} 49. Bd5 {[%clk 0:00:27]}  Kf6 {[%clk 0:00:04]} 50. Nf3 {[%clk 0:00:23]}  Bh7 {[%clk 0:00:04]} 51. c4 {[%clk 0:00:23]}  Ra3+ {[%clk 0:00:04]} 52. Kd4 {[%clk 0:00:23]}  Bg8 {[%clk 0:00:04]} 53. c5 {[%clk 0:00:23]}  Ke7 {[%clk 0:00:04]} 54. Bc4 {[%clk 0:00:22]}  Ra4 {[%clk 0:00:03]} 55. Nd5+ {[%clk 0:00:22]}  Ke8 {[%clk 0:00:04]} 56. Nf6+ {[%clk 0:00:21]}  Kf8 {[%clk 0:00:05]} 57. Nxg8 {[%clk 0:00:22]}  Kxg8 {[%clk 0:00:05]} 58. c6 {[%clk 0:00:23]}  Kf8 {[%clk 0:00:05]} 59. Kc5 {[%clk 0:00:22]}  Ke7 {[%clk 0:00:05]} 60. Nd4 {[%clk 0:00:23]}  Kd8 {[%clk 0:00:05]} 61. Nxf5 {[%clk 0:00:23]}  Ra5+ {[%clk 0:00:06]} 62. Bb5 {[%clk 0:00:23]}  Ra2 {[%clk 0:00:07]} 63. Kb6 {[%clk 0:00:22]}  Rc2 {[%clk 0:00:07]} 64. Nd6 {[%clk 0:00:20]}  Ke7 {[%clk 0:00:03]} 65. Nc4 {[%clk 0:00:20]} 1-0


[Site "https://www.chess.com"]

[Event "Titled Tuesday Blitz August 1 Early 2023"]
[White "Belov, Alexei"]
[Black "Fontaine, Quentin"]
[WhiteFideId "4128206"]
[BlackFideId "230804"]
[WhiteElo "2606"]
[BlackElo "2465"]
[Result "0-1"]
[Round "8"]
[TimeControl "180+1"]
[Date "2023.08.01"]
[WhiteClock "0:00:02"]
[BlackClock "0:00:06"]
[Board "100"]

1. e4 {[%clk 0:03:00]}  e5 {[%clk 0:02:58]} 2. Nf3 {[%clk 0:03:00]}  Nc6 {[%clk 0:02:58]} 3. Bb5 {[%clk 0:03:00]}  a6 {[%clk 0:02:59]} 4. Ba4 {[%clk 0:03:00]}  Nf6 {[%clk 0:02:58]} 5. d4 {[%clk 0:03:01]}  exd4 {[%clk 0:02:53]} 6. O-O {[%clk 0:03:01]}  Be7 {[%clk 0:02:41]} 7. e5 {[%clk 0:03:00]}  Nd5 {[%clk 0:02:41]} 8. Nxd4 {[%clk 0:03:00]}  Nxd4 {[%clk 0:02:35]} 9. Qxd4 {[%clk 0:02:58]}  Nb6 {[%clk 0:02:33]} 10. Bb3 {[%clk 0:02:57]}  O-O {[%clk 0:02:30]} 11. Nc3 {[%clk 0:02:56]}  d6 {[%clk 0:02:27]} 12. Bf4 {[%clk 0:02:48]}  dxe5 {[%clk 0:02:14]} 13. Bxe5 {[%clk 0:02:44]}  Qxd4 {[%clk 0:02:13]} 14. Bxd4 {[%clk 0:02:44]}  Bf5 {[%clk 0:01:55]} 15. Rfe1 {[%clk 0:02:38]}  Rfe8 {[%clk 0:01:51]} 16. h3 {[%clk 0:02:06]}  Bf8 {[%clk 0:01:49]} 17. Be5 {[%clk 0:01:45]}  c6 {[%clk 0:01:43]} 18. Bc7 {[%clk 0:01:37]}  Bc5 {[%clk 0:01:30]} 19. g4 {[%clk 0:01:26]}  Bg6 {[%clk 0:01:27]} 20. Kf1 {[%clk 0:01:26]}  Rac8 {[%clk 0:01:22]} 21. Rxe8+ {[%clk 0:01:19]}  Rxe8 {[%clk 0:01:21]} 22. Rd1 {[%clk 0:01:20]}  Rc8 {[%clk 0:01:10]} 23. Bg3 {[%clk 0:01:10]}  h5 {[%clk 0:01:02]} 24. f4 {[%clk 0:01:09]}  hxg4 {[%clk 0:00:58]} 25. hxg4 {[%clk 0:01:09]}  Kf8 {[%clk 0:00:56]} 26. f5 {[%clk 0:01:07]}  Bh7 {[%clk 0:00:56]} 27. Ne4 {[%clk 0:01:06]}  Be7 {[%clk 0:00:55]} 28. Nd6 {[%clk 0:00:53]}  Rd8 {[%clk 0:00:48]} 29. Ke2 {[%clk 0:00:51]}  g6 {[%clk 0:00:38]} 30. Be5 {[%clk 0:00:26]}  gxf5 {[%clk 0:00:33]} 31. gxf5 {[%clk 0:00:26]}  Nd5 {[%clk 0:00:26]} 32. Bxd5 {[%clk 0:00:20]}  cxd5 {[%clk 0:00:25]} 33. Rxd5 {[%clk 0:00:18]}  Bxf5 {[%clk 0:00:23]} 34. c4 {[%clk 0:00:18]}  Be6 {[%clk 0:00:23]} 35. Rd4 {[%clk 0:00:17]}  f6 {[%clk 0:00:21]} 36. Bf4 {[%clk 0:00:17]}  b6 {[%clk 0:00:18]} 37. b3 {[%clk 0:00:16]}  a5 {[%clk 0:00:18]} 38. Ke3 {[%clk 0:00:16]}  Kg7 {[%clk 0:00:16]} 39. Ne4 {[%clk 0:00:15]}  Rh8 {[%clk 0:00:13]} 40. Bd6 {[%clk 0:00:14]}  Rh3+ {[%clk 0:00:12]} 41. Kf4 {[%clk 0:00:13]}  Bd8 {[%clk 0:00:11]} 42. Ng3 {[%clk 0:00:11]}  Rh4+ {[%clk 0:00:11]} 43. Ke3 {[%clk 0:00:12]}  Rh3 {[%clk 0:00:10]} 44. Kf2 {[%clk 0:00:10]}  Rh2+ {[%clk 0:00:09]} 45. Kf3 {[%clk 0:00:10]}  Rxa2 {[%clk 0:00:10]} 46. Re4 {[%clk 0:00:10]}  Bf7 {[%clk 0:00:08]} 47. Be7 {[%clk 0:00:10]}  Bxe7 {[%clk 0:00:07]} 48. Nf5+ {[%clk 0:00:10]}  Kf8 {[%clk 0:00:06]} 49. Nxe7 {[%clk 0:00:09]}  Ra3 {[%clk 0:00:06]} 50. Re3 {[%clk 0:00:09]}  Bxc4 {[%clk 0:00:06]} 51. Nc6 {[%clk 0:00:07]}  Rxb3 {[%clk 0:00:06]} 52. Rxb3 {[%clk 0:00:07]}  Bxb3 {[%clk 0:00:06]} 53. Nd4 {[%clk 0:00:06]}  Bd5+ {[%clk 0:00:06]} 54. Kf4 {[%clk 0:00:06]}  a4 {[%clk 0:00:06]} 55. Nc2 {[%clk 0:00:06]}  Bb3 {[%clk 0:00:06]} 56. Na3 {[%clk 0:00:06]}  Kf7 {[%clk 0:00:06]} 57. Kf5 {[%clk 0:00:06]}  Bd5 {[%clk 0:00:05]} 58. Nb5 {[%clk 0:00:06]}  Bc6 {[%clk 0:00:05]} 59. Na3 {[%clk 0:00:05]}  b5 {[%clk 0:00:05]} 60. Nc2 {[%clk 0:00:06]}  b4 {[%clk 0:00:05]} 61. Nxb4 {[%clk 0:00:06]}  Bb5 {[%clk 0:00:06]} 62. Nc2 {[%clk 0:00:02]}  Bd3+ {[%clk 0:00:06]} 0-1


[Site "https://www.chess.com"]

[Event "Titled Tuesday Blitz August 1 Early 2023"]
[White "Swicarz, Maciej"]
[Black "Degenbaev, Aziz"]
[WhiteFideId "1113585"]
[BlackFideId "13802640"]
[WhiteElo "2418"]
[BlackElo "2563"]
[Result "1-0"]
[Round "8"]
[TimeControl "180+1"]
[Date "2023.08.01"]
[WhiteClock "0:01:23"]
[BlackClock "0:01:47"]
[Board "105"]

1. c4 {[%clk 0:03:00]}  e5 {[%clk 0:02:55]} 2. Nc3 {[%clk 0:03:00]}  Nc6 {[%clk 0:02:56]} 3. Nf3 {[%clk 0:02:58]}  Nf6 {[%clk 0:02:55]} 4. e4 {[%clk 0:02:58]}  Bb4 {[%clk 0:02:50]} 5. d3 {[%clk 0:02:58]}  O-O {[%clk 0:02:50]} 6. a3 {[%clk 0:02:57]}  Bxc3+ {[%clk 0:02:42]} 7. bxc3 {[%clk 0:02:58]}  d6 {[%clk 0:02:43]} 8. Be2 {[%clk 0:02:57]}  Re8 {[%clk 0:02:43]} 9. O-O {[%clk 0:02:57]}  b6 {[%clk 0:02:44]} 10. Ne1 {[%clk 0:02:52]}  h6 {[%clk 0:02:44]} 11. f4 {[%clk 0:02:52]}  exf4 {[%clk 0:02:44]} 12. Bxf4 {[%clk 0:02:51]}  Ba6 {[%clk 0:02:44]} 13. Nc2 {[%clk 0:02:47]}  Qd7 {[%clk 0:02:43]} 14. Nb4 {[%clk 0:02:45]}  Bb7 {[%clk 0:02:43]} 15. Qd2 {[%clk 0:02:39]}  Kh7 {[%clk 0:02:39]} 16. Nd5 {[%clk 0:02:24]}  Nxd5 {[%clk 0:02:38]} 17. cxd5 {[%clk 0:02:25]}  Ne5 {[%clk 0:02:39]} 18. h3 {[%clk 0:02:19]}  Ng6 {[%clk 0:02:18]} 19. Bg3 {[%clk 0:02:15]}  a5 {[%clk 0:02:15]} 20. Bg4 {[%clk 0:02:14]}  Qe7 {[%clk 0:02:14]} 21. Rf2 {[%clk 0:02:12]}  Bc8 {[%clk 0:02:13]} 22. Bd1 {[%clk 0:02:09]}  f6 {[%clk 0:02:13]} 23. Bc2 {[%clk 0:02:08]}  Kh8 {[%clk 0:02:13]} 24. Raf1 {[%clk 0:02:07]}  Bd7 {[%clk 0:02:12]} 25. d4 {[%clk 0:02:03]}  Nf8 {[%clk 0:02:11]} 26. e5 {[%clk 0:01:58]}  dxe5 {[%clk 0:02:10]} 27. dxe5 {[%clk 0:01:58]}  fxe5 {[%clk 0:02:10]} 28. Rf7 {[%clk 0:01:39]}  Qc5+ {[%clk 0:02:06]} 29. Kh1 {[%clk 0:01:38]}  Bb5 {[%clk 0:02:02]} 30. R1f6 {[%clk 0:01:32]}  Kg8 {[%clk 0:01:55]} 31. Rxg7+ {[%clk 0:01:26]}  Kxg7 {[%clk 0:01:52]} 32. Qxh6+ {[%clk 0:01:25]}  Kg8 {[%clk 0:01:47]} 33. Rxf8+ {[%clk 0:01:23]} 1-0


[Site "https://www.chess.com"]

[Event "Titled Tuesday Blitz August 1 Early 2023"]
[White "Rodriguez Santiago, Jaime"]
[Black "Vlassov, Nikolai"]
[WhiteFideId "3100898"]
[BlackFideId "4103360"]
[WhiteElo "2378"]
[BlackElo "2542"]
[Result "0-1"]
[Round "8"]
[TimeControl "180+1"]
[Date "2023.08.01"]
[WhiteClock "0:00:28"]
[BlackClock "0:01:59"]
[Board "108"]

1. c4 {[%clk 0:03:00]}  e5 {[%clk 0:02:59]} 2. Nc3 {[%clk 0:02:58]}  Nf6 {[%clk 0:02:59]} 3. g3 {[%clk 0:02:58]}  h5 {[%clk 0:02:58]} 4. h3 {[%clk 0:02:57]}  d5 {[%clk 0:02:55]} 5. cxd5 {[%clk 0:02:56]}  Nxd5 {[%clk 0:02:56]} 6. Bg2 {[%clk 0:02:57]}  Be6 {[%clk 0:02:54]} 7. Nf3 {[%clk 0:02:53]}  Nc6 {[%clk 0:02:54]} 8. Qa4 {[%clk 0:02:37]}  Nb6 {[%clk 0:02:45]} 9. Qc2 {[%clk 0:02:19]}  Be7 {[%clk 0:02:35]} 10. a3 {[%clk 0:02:16]}  Qd7 {[%clk 0:02:33]} 11. b4 {[%clk 0:02:12]}  O-O-O {[%clk 0:02:26]} 12. b5 {[%clk 0:02:06]}  Nd4 {[%clk 0:02:25]} 13. Nxd4 {[%clk 0:02:04]}  exd4 {[%clk 0:02:26]} 14. Qe4 {[%clk 0:01:33]}  c5 {[%clk 0:02:03]} 15. bxc6 {[%clk 0:01:31]}  bxc6 {[%clk 0:02:04]} 16. Nd1 {[%clk 0:01:14]}  Bd5 {[%clk 0:02:02]} 17. Qc2 {[%clk 0:01:01]}  Bxg2 {[%clk 0:02:02]} 18. Rg1 {[%clk 0:01:00]}  Qxh3 {[%clk 0:02:00]} 19. f3 {[%clk 0:00:53]}  Qxg3+ {[%clk 0:01:59]} 20. Nf2 {[%clk 0:00:54]}  Bh4 {[%clk 0:01:58]} 21. Qxc6+ {[%clk 0:00:28]}  Kb8 {[%clk 0:01:59]} 0-1


[Site "https://www.chess.com"]

[Event "Titled Tuesday Blitz August 1 Early 2023"]
[White "Thecourseoisildur"]
[Black "Romero Arzuaga, Yudel"]
[BlackFideId "3521010"]
[WhiteElo "2536"]
[BlackElo "2364"]
[Result "1-0"]
[Round "8"]
[TimeControl "180+1"]
[Date "2023.08.01"]
[WhiteClock "0:02:24"]
[BlackClock "0:02:03"]
[Board "109"]

1. d4 {[%clk 0:03:00]}  d5 {[%clk 0:02:59]} 2. c4 {[%clk 0:02:59]}  e6 {[%clk 0:03:00]} 3. Nf3 {[%clk 0:02:57]}  h6 {[%clk 0:03:00]} 4. g3 {[%clk 0:02:57]}  Nf6 {[%clk 0:02:59]} 5. Bg2 {[%clk 0:02:57]}  c6 {[%clk 0:02:59]} 6. O-O {[%clk 0:02:56]}  Be7 {[%clk 0:03:00]} 7. Qc2 {[%clk 0:02:55]}  O-O {[%clk 0:03:01]} 8. Nbd2 {[%clk 0:02:55]}  Nbd7 {[%clk 0:03:01]} 9. b3 {[%clk 0:02:55]}  b6 {[%clk 0:02:56]} 10. Bb2 {[%clk 0:02:55]}  Bb7 {[%clk 0:02:56]} 11. e4 {[%clk 0:02:55]}  dxe4 {[%clk 0:02:55]} 12. Nxe4 {[%clk 0:02:55]}  c5 {[%clk 0:02:51]} 13. Nxf6+ {[%clk 0:02:53]}  Bxf6 {[%clk 0:02:46]} 14. Rad1 {[%clk 0:02:52]}  Qc7 {[%clk 0:02:43]} 15. d5 {[%clk 0:02:37]}  exd5 {[%clk 0:02:36]} 16. cxd5 {[%clk 0:02:35]}  Bxb2 {[%clk 0:02:36]} 17. Qxb2 {[%clk 0:02:36]}  Rad8 {[%clk 0:02:36]} 18. d6 {[%clk 0:02:30]}  Qc6 {[%clk 0:02:27]} 19. Nh4 {[%clk 0:02:25]}  Qc8 {[%clk 0:02:03]} 20. Nf5 {[%clk 0:02:24]} 1-0


[Site "https://www.chess.com"]

[Event "Titled Tuesday Blitz August 1 Early 2023"]
[White "Vifleemskaia, Svetlana"]
[Black "Ismagilov, Damir"]
[WhiteFideId "4129490"]
[BlackFideId "34199982"]
[WhiteElo "2345"]
[BlackElo "2535"]
[Result "1-0"]
[Round "8"]
[TimeControl "180+1"]
[Date "2023.08.01"]
[WhiteClock "0:00:09"]
[BlackClock "0:00:00"]
[Board "110"]

1. d4 {[%clk 0:03:00]}  Nf6 {[%clk 0:02:59]} 2. c4 {[%clk 0:03:01]}  e6 {[%clk 0:02:59]} 3. Nc3 {[%clk 0:03:01]}  Bb4 {[%clk 0:02:58]} 4. e3 {[%clk 0:03:01]}  O-O {[%clk 0:02:58]} 5. Ne2 {[%clk 0:03:02]}  c6 {[%clk 0:02:58]} 6. a3 {[%clk 0:03:02]}  Ba5 {[%clk 0:02:59]} 7. b4 {[%clk 0:03:02]}  Bc7 {[%clk 0:02:59]} 8. f4 {[%clk 0:03:01]}  d5 {[%clk 0:02:56]} 9. c5 {[%clk 0:03:00]}  a5 {[%clk 0:02:48]} 10. Bd2 {[%clk 0:03:00]}  axb4 {[%clk 0:02:45]} 11. axb4 {[%clk 0:03:01]}  Rxa1 {[%clk 0:02:44]} 12. Qxa1 {[%clk 0:03:02]}  Na6 {[%clk 0:02:41]} 13. Qb1 {[%clk 0:02:57]}  b5 {[%clk 0:02:36]} 14. Ng3 {[%clk 0:02:54]}  Ne8 {[%clk 0:02:20]} 15. Bd3 {[%clk 0:02:53]}  Qh4 {[%clk 0:02:08]} 16. O-O {[%clk 0:02:51]}  g6 {[%clk 0:02:08]} 17. Be1 {[%clk 0:02:41]}  Qe7 {[%clk 0:02:04]} 18. Nce2 {[%clk 0:02:02]}  Ng7 {[%clk 0:02:02]} 19. Bd2 {[%clk 0:01:57]}  h5 {[%clk 0:01:43]} 20. Nc1 {[%clk 0:01:35]}  h4 {[%clk 0:01:36]} 21. Nge2 {[%clk 0:01:34]}  g5 {[%clk 0:01:20]} 22. g4 {[%clk 0:01:24]}  f5 {[%clk 0:01:14]} 23. h3 {[%clk 0:01:13]}  fxg4 {[%clk 0:00:59]} 24. hxg4 {[%clk 0:01:12]}  e5 {[%clk 0:00:59]} 25. dxe5 {[%clk 0:00:55]}  Bxg4 {[%clk 0:00:59]} 26. Nd4 {[%clk 0:00:52]}  Nb8 {[%clk 0:00:44]} 27. Nce2 {[%clk 0:00:37]}  gxf4 {[%clk 0:00:30]} 28. exf4 {[%clk 0:00:35]}  h3 {[%clk 0:00:29]} 29. Kh2 {[%clk 0:00:23]}  Qh4 {[%clk 0:00:22]} 30. Qe1 {[%clk 0:00:22]}  Qh5 {[%clk 0:00:16]} 31. Qg3 {[%clk 0:00:19]}  Nd7 {[%clk 0:00:14]} 32. Rg1 {[%clk 0:00:19]}  Nxe5 {[%clk 0:00:13]} 33. fxe5 {[%clk 0:00:17]}  Bxe5 {[%clk 0:00:10]} 34. Bf4 {[%clk 0:00:17]}  Rxf4 {[%clk 0:00:04]} 35. Nxf4 {[%clk 0:00:15]}  Qg5 {[%clk 0:00:05]} 36. Nde6 {[%clk 0:00:13]}  Bxf4 {[%clk 0:00:02]} 37. Qxf4 {[%clk 0:00:10]}  Qxf4+ {[%clk 0:00:02]} 38. Nxf4 {[%clk 0:00:09]}  Bd7 {[%clk 0:00:00]} 39. Nh5 {[%clk 0:00:09]} 1-0


[Site "https://www.chess.com"]

[Event "Titled Tuesday Blitz August 1 Early 2023"]
[White "Al-Tarboush, Ward"]
[Black "Miguelitro69"]
[WhiteFideId "7601450"]
[WhiteElo "2530"]
[BlackElo "2336"]
[Result "1-0"]
[Round "8"]
[TimeControl "180+1"]
[Date "2023.08.01"]
[WhiteClock "0:00:49"]
[BlackClock "0:00:00"]
[Board "112"]

1. e4 {[%clk 0:02:59]}  c5 {[%clk 0:03:00]} 2. Nf3 {[%clk 0:02:59]}  Nc6 {[%clk 0:03:00]} 3. d4 {[%clk 0:02:58]}  cxd4 {[%clk 0:03:01]} 4. Nxd4 {[%clk 0:02:59]}  g6 {[%clk 0:03:02]} 5. c4 {[%clk 0:02:55]}  Bg7 {[%clk 0:03:02]} 6. Be3 {[%clk 0:02:55]}  Nf6 {[%clk 0:03:02]} 7. Nc3 {[%clk 0:02:54]}  Ng4 {[%clk 0:03:02]} 8. Qxg4 {[%clk 0:02:53]}  Nxd4 {[%clk 0:03:02]} 9. Qd1 {[%clk 0:02:54]}  Ne6 {[%clk 0:03:02]} 10. Qd2 {[%clk 0:02:52]}  O-O {[%clk 0:03:02]} 11. Be2 {[%clk 0:02:53]}  d6 {[%clk 0:03:03]} 12. O-O {[%clk 0:02:53]}  Bd7 {[%clk 0:03:03]} 13. Rac1 {[%clk 0:02:51]}  Bc6 {[%clk 0:03:03]} 14. f3 {[%clk 0:02:50]}  a5 {[%clk 0:03:03]} 15. b3 {[%clk 0:02:48]}  Nc5 {[%clk 0:03:03]} 16. Rfd1 {[%clk 0:02:48]}  Qb6 {[%clk 0:02:55]} 17. Kh1 {[%clk 0:02:45]}  h5 {[%clk 0:02:37]} 18. Bd4 {[%clk 0:02:43]}  Rfc8 {[%clk 0:02:32]} 19. Bxg7 {[%clk 0:02:41]}  Kxg7 {[%clk 0:02:32]} 20. Qd4+ {[%clk 0:02:41]}  Kh7 {[%clk 0:02:31]} 21. Rb1 {[%clk 0:02:28]}  Qc7 {[%clk 0:02:26]} 22. a3 {[%clk 0:02:26]}  a4 {[%clk 0:01:46]} 23. b4 {[%clk 0:02:23]}  Nb3 {[%clk 0:01:46]} 24. Qe3 {[%clk 0:02:21]}  Bd7 {[%clk 0:01:45]} 25. Nd5 {[%clk 0:02:21]}  Qd8 {[%clk 0:01:45]} 26. Nb6 {[%clk 0:02:17]}  Be6 {[%clk 0:01:45]} 27. f4 {[%clk 0:02:10]}  Rc6 {[%clk 0:01:37]} 28. Nxa8 {[%clk 0:02:06]}  Qxa8 {[%clk 0:01:38]} 29. f5 {[%clk 0:02:05]}  gxf5 {[%clk 0:01:33]} 30. Bxh5 {[%clk 0:01:51]}  Qg8 {[%clk 0:01:28]} 31. Qh3 {[%clk 0:01:23]}  fxe4 {[%clk 0:01:17]} 32. Qh4 {[%clk 0:01:14]}  Kg7 {[%clk 0:01:09]} 33. Qxe7 {[%clk 0:01:11]}  Qh7 {[%clk 0:01:02]} 34. Qg5+ {[%clk 0:01:10]}  Kf8 {[%clk 0:00:53]} 35. Qd8+ {[%clk 0:01:10]}  Kg7 {[%clk 0:00:52]} 36. Qg5+ {[%clk 0:01:11]}  Kf8 {[%clk 0:00:51]} 37. b5 {[%clk 0:01:12]}  Rc5 {[%clk 0:00:42]} 38. Qd8+ {[%clk 0:01:11]}  Kg7 {[%clk 0:00:42]} 39. Be2 {[%clk 0:01:05]}  e3 {[%clk 0:00:13]} 40. Qxd6 {[%clk 0:00:59]}  Qc2 {[%clk 0:00:12]} 41. Qg3+ {[%clk 0:00:55]}  Kh6 {[%clk 0:00:12]} 42. Qxe3+ {[%clk 0:00:55]}  Rg5 {[%clk 0:00:10]} 43. h4 {[%clk 0:00:52]}  f6 {[%clk 0:00:05]} 44. hxg5+ {[%clk 0:00:49]}  fxg5 {[%clk 0:00:00]} 45. Qxe6+ {[%clk 0:00:49]} 1-0


[Site "https://www.chess.com"]

[Event "Titled Tuesday Blitz August 1 Early 2023"]
[White "Kirillov, Dmitry"]
[Black "Atakhan, Abtin"]
[WhiteFideId "34180572"]
[BlackFideId "22502203"]
[WhiteElo "2430"]
[BlackElo "2765"]
[Result "1/2-1/2"]
[Round "8"]
[TimeControl "180+1"]
[Date "2023.08.01"]
[WhiteClock "0:00:21"]
[BlackClock "0:00:10"]
[Board "118"]

1. d4 {[%clk 0:03:00]}  Nf6 {[%clk 0:03:00]} 2. Nf3 {[%clk 0:02:53]}  g6 {[%clk 0:03:00]} 3. g3 {[%clk 0:02:52]}  Bg7 {[%clk 0:03:00]} 4. Bg2 {[%clk 0:02:52]}  d5 {[%clk 0:03:01]} 5. O-O {[%clk 0:02:52]}  O-O {[%clk 0:03:01]} 6. c4 {[%clk 0:02:52]}  c6 {[%clk 0:03:02]} 7. cxd5 {[%clk 0:02:52]}  cxd5 {[%clk 0:03:03]} 8. Ne5 {[%clk 0:02:52]}  Nc6 {[%clk 0:03:02]} 9. Nc3 {[%clk 0:02:51]}  Bf5 {[%clk 0:03:02]} 10. Nxc6 {[%clk 0:02:49]}  bxc6 {[%clk 0:03:03]} 11. Na4 {[%clk 0:02:49]}  h5 {[%clk 0:03:00]} 12. b3 {[%clk 0:02:46]}  Re8 {[%clk 0:02:51]} 13. Bg5 {[%clk 0:02:39]}  Ne4 {[%clk 0:02:48]} 14. Bf4 {[%clk 0:02:38]}  c5 {[%clk 0:02:38]} 15. Nxc5 {[%clk 0:02:14]}  Nxc5 {[%clk 0:02:37]} 16. dxc5 {[%clk 0:02:15]}  Bxa1 {[%clk 0:02:38]} 17. Qxa1 {[%clk 0:02:16]}  Rc8 {[%clk 0:02:38]} 18. b4 {[%clk 0:02:15]}  Be6 {[%clk 0:02:19]} 19. Rd1 {[%clk 0:02:13]}  Qd7 {[%clk 0:02:02]} 20. e4 {[%clk 0:02:10]}  d4 {[%clk 0:02:03]} 21. Rxd4 {[%clk 0:01:57]}  Qa4 {[%clk 0:02:03]} 22. Bh6 {[%clk 0:01:52]}  f6 {[%clk 0:01:54]} 23. e5 {[%clk 0:01:51]}  Red8 {[%clk 0:01:48]} 24. exf6 {[%clk 0:01:45]}  exf6 {[%clk 0:01:46]} 25. Rxd8+ {[%clk 0:01:41]}  Rxd8 {[%clk 0:01:47]} 26. Qxf6 {[%clk 0:01:30]}  Rd1+ {[%clk 0:01:26]} 27. Bf1 {[%clk 0:01:30]}  Rxf1+ {[%clk 0:00:51]} 28. Kxf1 {[%clk 0:01:29]}  Qd1+ {[%clk 0:00:52]} 29. Kg2 {[%clk 0:01:28]}  Bd5+ {[%clk 0:00:53]} 30. f3 {[%clk 0:01:22]}  Qe2+ {[%clk 0:00:53]} 31. Kh3 {[%clk 0:01:02]}  Be6+ {[%clk 0:00:53]} 32. g4 {[%clk 0:00:59]}  Bxg4+ {[%clk 0:00:37]} 33. Kg3 {[%clk 0:00:47]}  Qe1+ {[%clk 0:00:37]} 34. Kf4 {[%clk 0:00:43]}  Qd2+ {[%clk 0:00:24]} 35. Kg3 {[%clk 0:00:34]}  Qe1+ {[%clk 0:00:23]} 36. Kf4 {[%clk 0:00:32]}  Qd2+ {[%clk 0:00:17]} 37. Kg3 {[%clk 0:00:21]}  Qe1+ {[%clk 0:00:10]} 1/2-1/2


[Site "https://www.chess.com"]

[Event "Titled Tuesday Blitz August 1 Early 2023"]
[White "Davidson, Kevin"]
[Black "Nagare Kaivalya Sandip"]
[WhiteFideId "2056810"]
[BlackFideId "25957929"]
[WhiteElo "2430"]
[BlackElo "2663"]
[Result "0-1"]
[Round "8"]
[TimeControl "180+1"]
[Date "2023.08.01"]
[WhiteClock "0:00:46"]
[BlackClock "0:01:36"]
[Board "119"]

1. e4 {[%clk 0:02:58]}  c5 {[%clk 0:02:59]} 2. Nf3 {[%clk 0:02:58]}  d6 {[%clk 0:03:00]} 3. d4 {[%clk 0:02:59]}  cxd4 {[%clk 0:03:01]} 4. Nxd4 {[%clk 0:02:59]}  Nf6 {[%clk 0:03:01]} 5. Nc3 {[%clk 0:03:00]}  a6 {[%clk 0:03:01]} 6. h3 {[%clk 0:03:00]}  e5 {[%clk 0:02:56]} 7. Nde2 {[%clk 0:02:59]}  h5 {[%clk 0:02:54]} 8. Bg5 {[%clk 0:02:59]}  Be6 {[%clk 0:02:55]} 9. Bxf6 {[%clk 0:02:56]}  Qxf6 {[%clk 0:02:55]} 10. Nd5 {[%clk 0:02:57]}  Qd8 {[%clk 0:02:55]} 11. Nec3 {[%clk 0:02:57]}  g6 {[%clk 0:02:51]} 12. Bc4 {[%clk 0:02:52]}  Nd7 {[%clk 0:02:48]} 13. O-O {[%clk 0:02:48]}  Rc8 {[%clk 0:02:48]} 14. Bb3 {[%clk 0:02:47]}  Bg7 {[%clk 0:02:35]} 15. Ne3 {[%clk 0:02:28]}  Rc6 {[%clk 0:02:32]} 16. Bd5 {[%clk 0:02:05]}  Nf6 {[%clk 0:02:19]} 17. Bxc6+ {[%clk 0:02:05]}  bxc6 {[%clk 0:02:20]} 18. Qd3 {[%clk 0:01:59]}  O-O {[%clk 0:02:14]} 19. Rad1 {[%clk 0:01:48]}  Qb6 {[%clk 0:02:11]} 20. Qxd6 {[%clk 0:01:23]}  Qxb2 {[%clk 0:02:11]} 21. Qc5 {[%clk 0:01:13]}  Qb7 {[%clk 0:01:38]} 22. Rb1 {[%clk 0:01:09]}  Qc7 {[%clk 0:01:37]} 23. Rb6 {[%clk 0:01:05]}  Nd7 {[%clk 0:01:36]} 24. Qxc6 {[%clk 0:00:46]}  Qxb6 {[%clk 0:01:36]} 0-1


[Site "https://www.chess.com"]